fUST/lending_fUST_20250430
["ID","MTS","AMOUNT","RATE_DAILY","PERIOD"]
[359391537,1745979038027,-160.0,0.00039936,2]
[359391539,1745979038038,-400.0,0.0003994,5]
[359391541,1745979038049,-210.87090096,0.00039941,31]
[359391543,1745979038059,-47.6160552,0.00039942,2]
[359391545,1745979038069,-500.0,0.00039942,2]
[359391547,1745979038079,-500.0,0.00039942,2]
[359391549,1745979038089,-500.0,0.00039942,2]
[359391551,1745979038098,-500.0,0.00039942,2]
[359391553,1745979038107,-500.0,0.00039942,2]
[359391555,1745979038116,-500.0,0.00039942,2]
[359391557,1745979038126,-500.0,0.00039942,2]
[359391559,1745979038135,-500.0,0.00039942,2]
[359391561,1745979038145,-500.0,0.00039942,2]
[359391563,1745979038155,-500.0,0.00039942,2]
[359391565,1745979038164,-500.0,0.00039942,2]
[359391567,1745979038174,-311.87942384,0.00039942,2]
[359391569,1745979038184,-500.0,0.00039942,2]
[359391571,1745979038193,-500.0,0.00039942,2]
[359391573,1745979038204,-500.0,0.00039942,2]
[359391575,1745979038213,-500.0,0.00039942,2]
[359391577,1745979038222,-500.0,0.00039942,2]
[359391579,1745979038232,-803.88529646,0.00039942,2]
[359391581,1745979038242,-25863.86027599,0.00039942,3]
[359391584,1745979038252,-107939.570093,0.00039942,3]
[359391587,1745979038261,-840.90604152,0.00039942,3]
[359391590,1745979038270,-160.0,0.00039942,3]
[359391593,1745979038279,-400.0,0.00039951,5]
[359391595,1745979038288,-400.0,0.00039951,5]
[359391598,1745979038298,-720.71,0.00039951,5]
[359391601,1745979038307,-400.0,0.00039951,5]
[359391603,1745979038316,-1018.7,0.00039951,5]
[359391605,1745979038326,-5013.53,0.00039951,5]
[359391607,1745979038336,-400.0,0.00039951,5]
[359391609,1745979038345,-4289.36,0.00039951,5]
[359391611,1745979038355,-1549.51,0.00039951,5]
[359391613,1745979038365,-400.0,0.00039951,5]
[359391615,1745979038375,-1535.84,0.00039951,5]
[359391617,1745979038384,-400.0,0.00039951,5]
[359391619,1745979038394,-3012.21,0.00039951,5]
[359391621,1745979038403,-400.0,0.00039951,5]
[359391623,1745979038412,-1478.02,0.00039951,5]
[359391625,1745979038422,-577.92,0.00039951,5]
[359391627,1745979038431,-400.0,0.00039951,5]
[359391629,1745979038440,-400.0,0.00039951,5]
[359391631,1745979038450,-534.90224878,0.00039951,5]
[359391633,1745979038459,-476.03,0.00039951,5]
[359391635,1745979038468,-1956.08,0.00039951,5]
[359391637,1745979038478,-400.0,0.00039951,5]
[359391639,1745979038487,-400.0,0.00039951,5]
[359391641,1745979038497,-400.0,0.00039951,5]
[359391643,1745979038507,-501.33190158,0.00039951,5]
[359391645,1745979038516,-400.0,0.00039951,5]
[359391647,1745979038526,-1453.04,0.00039951,5]
[359391649,1745979038536,-400.0,0.00039951,5]
[359391651,1745979038546,-400.0,0.00039951,5]
[359391653,1745979038555,-549.02,0.00039951,5]
[359391655,1745979038564,-400.0,0.00039951,5]
[359391657,1745979038574,-1806.58,0.00039951,5]
[359391659,1745979038583,-1535.57,0.00039951,5]
[359391661,1745979038593,-400.0,0.00039951,5]
[359391663,1745979038603,-1729.55,0.00039951,5]
[359391665,1745979038612,-664.99,0.00039951,5]
[359391667,1745979038622,-400.0,0.00039951,5]
[359391669,1745979038632,-1000.13140736,0.00039952,2]
[359391672,1745979038642,-400.0,0.00039952,5]
[359391674,1745979038651,-402.67812137,0.00039952,5]
[359391676,1745979038660,-225.146,0.00039952,56]
[359391678,1745979038670,-400.0,0.00039952,5]
[359391680,1745979038680,-400.0,0.00039952,5]
[359391682,1745979038689,-400.0,0.00039952,5]
[359391684,1745979038699,-400.0,0.00039952,5]
[359391686,1745979038708,-344.83704282,0.00039952,5]
[359391688,1745979038718,-302.33117221,0.00039952,5]
[359391690,1745979038727,-400.0,0.00039952,5]
[359391692,1745979038737,-400.0,0.00039952,5]
[359391694,1745979038747,-502.9212255,0.00039952,5]
[359391696,1745979038756,-400.0,0.00039952,5]
[359391698,1745979038765,-400.0,0.00039952,5]
[359391700,1745979038776,-403.92004305,0.00039952,5]
[359391702,1745979038785,-400.0,0.00039952,5]
[359391704,1745979038794,-401.66628592,0.00039952,5]
[359391706,1745979038804,-400.0,0.00039952,5]
[359391709,1745979038814,-400.0,0.00039952,5]
[359391711,1745979038824,-500.08303863,0.00039952,2]
[359391713,1745979038833,-400.88233975,0.00039952,5]
[359391715,1745979038843,-402.5067196,0.00039952,5]
[359391717,1745979038853,-708.82,0.00039952,5]
[359391719,1745979038863,-403.48645483,0.00039952,5]
[359391721,1745979038873,-400.0,0.00039952,5]
[359391723,1745979038883,-316.38063183,0.00039952,5]
[359391725,1745979038892,-400.0,0.00039952,5]
[359391727,1745979038901,-504.34113574,0.00039952,5]
[359391729,1745979038912,-400.0,0.00039952,5]
[359391731,1745979038921,-400.0,0.00039952,5]
[359391733,1745979038933,-400.0,0.00039952,5]
[359391735,1745979038943,-405.10443017,0.00039952,5]
[359391737,1745979038953,-400.0,0.00039952,5]
[359391739,1745979038962,-400.0,0.00039952,5]
[359391741,1745979038974,-326.29449686,0.00039952,5]
[359391744,1745979038984,-400.0,0.00039952,5]
[359391746,1745979038994,-400.0,0.00039952,5]
[359391748,1745979039005,-400.0,0.00039952,5]
[359391750,1745979039014,-400.0,0.00039952,5]
[359391752,1745979039024,-400.0,0.00039952,5]
[359391754,1745979039033,-400.0,0.00039952,5]
[359391756,1745979039043,-400.0,0.00039952,5]
[359391758,1745979039052,-400.0,0.00039952,5]
[359391760,1745979039062,-400.0,0.00039952,5]
[359391762,1745979039071,-400.0,0.00039952,5]
[359391764,1745979039080,-702.96,0.00039952,5]
[359391766,1745979039090,-400.0,0.00039952,5]
[359391768,1745979039100,-1000.98567181,0.00039952,5]
[359391770,1745979039109,-403.82351468,0.00039952,5]
[359391772,1745979039118,-400.0,0.00039952,5]
[359391774,1745979039128,-402.28288631,0.00039952,5]
[359391776,1745979039138,-400.0,0.00039952,5]
[359391778,1745979039147,-400.0,0.00039952,5]
[359391780,1745979039157,-729.97,0.00039952,5]
[359391782,1745979039167,-1011.75416096,0.00039952,5]
[359391784,1745979039176,-515.71674155,0.00039952,5]
[359391786,1745979039187,-400.0,0.00039952,5]
[359391788,1745979039196,-400.0,0.00039952,5]
[359391790,1745979039206,-400.0,0.00039952,5]
[359391792,1745979039215,-508.31406165,0.00039952,5]
[359391794,1745979039225,-400.0,0.00039952,5]
[359391796,1745979039235,-400.0,0.00039952,5]
[359391798,1745979039244,-400.0,0.00039952,5]
[359391801,1745979039254,-400.0,0.00039952,5]
[359391803,1745979039264,-327.68499387,0.00039952,5]
[359391805,1745979039273,-400.0,0.00039952,5]
[359391807,1745979039284,-400.0,0.00039952,5]
[359391809,1745979039293,-400.0,0.00039952,5]
[359391811,1745979039303,-501.4837838,0.00039952,5]
[359391813,1745979039313,-400.0,0.00039952,5]
[359391815,1745979039322,-200.75167385,0.00039952,5]
[359391817,1745979039332,-218.88737477,0.00039952,5]
[359391819,1745979039341,-611.07,0.00039952,5]
[359391821,1745979039351,-400.0,0.00039952,5]
[359391823,1745979039361,-401.41003549,0.00039952,5]
[359391825,1745979039370,-400.0,0.00039952,5]
[359391827,1745979039380,-400.0,0.00039952,5]
[359391829,1745979039390,-400.0,0.00039952,5]
[359391831,1745979039399,-400.0,0.00039952,5]
[359391833,1745979039409,-548.40517486,0.00039952,5]
[359391835,1745979039419,-400.0,0.00039952,5]
[359391837,1745979039429,-400.0,0.00039952,5]
[359391839,1745979039439,-503.83216367,0.00039952,5]
[359391841,1745979039449,-400.0,0.00039952,5]
[359391843,1745979039459,-674.42,0.00039952,5]
[359391845,1745979039470,-400.0,0.00039952,5]
[359391847,1745979039480,-308.21366976,0.00039952,5]
[359391849,1745979039490,-400.0,0.00039952,5]
[359391851,1745979039499,-400.0,0.00039952,5]
[359391853,1745979039511,-400.0,0.00039952,5]
[359391855,1745979039521,-400.0,0.00039952,5]
[359391857,1745979039531,-400.0,0.00039952,5]
[359391859,1745979039541,-400.0,0.00039952,5]
[359391861,1745979039550,-400.0,0.00039952,5]
[359391863,1745979039560,-753.56,0.00039952,5]
[359391864,1745979039569,-400.0,0.00039952,5]
[359391865,1745979039580,-500.84214588,0.00039952,5]
[359391866,1745979039591,-404.98872967,0.00039952,5]
[359391867,1745979039601,-400.0,0.00039952,5]
[359391868,1745979039610,-400.0,0.00039952,5]
[359391869,1745979039620,-157.89691925,0.00039952,5]
[359391870,1745979039630,-400.0,0.00039952,5]
[359391871,1745979039640,-400.0,0.00039952,5]
[359391872,1745979039649,-401.81155237,0.00039952,5]
[359391873,1745979039659,-400.0,0.00039952,5]
[359391874,1745979039668,-400.0,0.00039952,5]
[359391875,1745979039677,-506.49621405,0.00039952,5]
[359391876,1745979039687,-407.75463192,0.00039952,5]
[359391877,1745979039696,-500.0,0.00039952,5]
[359391878,1745979039706,-400.0,0.00039952,5]
[359391879,1745979039715,-400.0,0.00039952,5]
[359391880,1745979039725,-400.0,0.00039952,5]
[359391881,1745979039734,-400.0,0.00039952,5]
[359391882,1745979039743,-400.0,0.00039952,5]
[359391883,1745979039753,-400.0,0.00039952,5]
[359391884,1745979039763,-400.0,0.00039952,5]
[359391885,1745979039772,-404.77558167,0.00039952,5]
[359391886,1745979039782,-501.53713645,0.00039952,5]
[359391887,1745979039792,-400.0,0.00039952,5]
[359391888,1745979039802,-400.0,0.00039952,5]
[359391889,1745979039811,-400.0,0.00039952,5]
[359391890,1745979039821,-402.92391108,0.00039952,5]
[359391891,1745979039831,-400.0,0.00039952,5]
[359391892,1745979039841,-400.0,0.00039952,5]
[359391893,1745979039850,-400.0,0.00039952,5]
[359391894,1745979039859,-400.0,0.00039952,5]
[359391895,1745979039868,-400.0,0.00039952,5]
[359391896,1745979039878,-400.0,0.00039952,5]
[359391897,1745979039887,-400.0,0.00039952,5]
[359391898,1745979039897,-400.0,0.00039952,5]
[359391899,1745979039906,-400.0,0.00039952,5]
[359391900,1745979039915,-400.0,0.00039952,5]
[359391901,1745979039926,-321.42893613,0.00039952,5]
[359391902,1745979039935,-1352.29,0.00039952,5]
[359391903,1745979039946,-400.0,0.00039952,5]
[359391904,1745979039956,-400.0,0.00039952,5]
[359391905,1745979039965,-400.0,0.00039952,5]
[359391906,1745979039975,-400.0,0.00039952,5]
[359391907,1745979039984,-400.0,0.00039952,5]
[359391908,1745979039993,-400.0,0.00039952,5]
[359391909,1745979040003,-400.0,0.00039952,5]
[359391910,1745979040012,-400.0,0.00039952,5]
[359391911,1745979040022,-400.0,0.00039952,5]
[359391912,1745979040032,-400.0,0.00039952,5]
[359391913,1745979040043,-400.0,0.00039952,5]
[359391914,1745979040052,-940.54,0.00039952,5]
[359391915,1745979040061,-500.17987265,0.00039952,5]
[359391916,1745979040071,-400.0,0.00039952,5]
[359391917,1745979040081,-400.0,0.00039952,5]
[359391918,1745979040091,-595.0,0.00039952,5]
[359391919,1745979040100,-630.91,0.00039952,5]
[359391920,1745979040110,-1241.69,0.00039952,5]
[359391921,1745979040119,-400.0,0.00039952,5]
[359391922,1745979040129,-400.0,0.00039952,5]
[359391923,1745979040138,-400.0,0.00039952,5]
[359391924,1745979040148,-400.0,0.00039952,5]
[359391925,1745979040158,-401.35479794,0.00039952,5]
[359391926,1745979040168,-400.0,0.00039952,5]
[359391927,1745979040179,-400.0,0.00039952,5]
[359391928,1745979040188,-403.74639954,0.00039952,5]
[359391929,1745979040197,-401.60139213,0.00039952,5]
[359391930,1745979040207,-670.61,0.00039952,5]
[359391931,1745979040216,-400.0,0.00039952,5]
[359391932,1745979040226,-400.0,0.00039952,5]
[359391933,1745979040235,-1087.14,0.00039952,5]
[359391934,1745979040245,-400.0,0.00039952,5]
[359391935,1745979040254,-954.25,0.00039952,5]
[359391936,1745979040264,-1431.25,0.00039952,5]
[359391937,1745979040273,-400.0,0.00039952,5]
[359391938,1745979040283,-400.97685034,0.00039952,5]
[359391939,1745979040292,-400.0,0.00039952,5]
[359391940,1745979040302,-400.0,0.00039952,5]
[359391941,1745979040312,-1644.19,0.00039952,5]
[359391942,1745979040321,-400.0,0.00039952,5]
[359391943,1745979040331,-404.41271928,0.00039952,5]
[359391944,1745979040341,-400.0,0.00039952,5]
[359391945,1745979040352,-400.0,0.00039952,5]
[359391946,1745979040361,-400.0,0.00039952,5]
[359391947,1745979040372,-400.0,0.00039952,5]
[359391948,1745979040381,-525.17164376,0.00039952,5]
[359391949,1745979040516,-157.74162163,0.00039952,5]
[359391950,1745979040526,-400.0,0.00039952,5]
[359391951,1745979040536,-400.0,0.00039952,5]
[359391952,1745979040545,-400.0,0.00039952,5]
[359391953,1745979040555,-400.0,0.00039952,5]
[359391954,1745979040565,-699.52,0.00039952,5]
[359391955,1745979040575,-506.46345419,0.00039952,5]
[359391956,1745979040585,-400.0,0.00039952,5]
[359391957,1745979040595,-400.0,0.00039952,5]
[359391958,1745979040605,-400.0,0.00039952,5]
[359391959,1745979040615,-400.0,0.00039952,5]
[359391960,1745979040625,-400.0,0.00039952,5]
[359391961,1745979040635,-1598.11,0.00039952,5]
[359391962,1745979040645,-1506.85,0.00039952,5]
[359391963,1745979040655,-1506.85,0.00039952,5]
[359391964,1745979040665,-400.0,0.00039952,5]
[359391965,1745979040675,-400.0,0.00039952,5]
[359391966,1745979040685,-400.0,0.00039952,5]
[359391968,1745979040696,-400.0,0.00039952,5]
[359391970,1745979040707,-1346.3,0.00039952,5]
[359391972,1745979040716,-400.0,0.00039952,5]
[359391973,1745979040726,-400.0,0.00039952,5]
[359391974,1745979040736,-400.0,0.00039952,5]
[359391976,1745979040746,-500.96,0.00039952,5]
[359391978,1745979040756,-518.38683979,0.00039952,5]
[359391979,1745979040766,-584.31,0.00039952,5]
[359391980,1745979040775,-406.52544079,0.00039952,5]
[359391981,1745979040786,-416.85,0.00039952,5]
[359391982,1745979040796,-534.04925366,0.00039952,5]
[359391983,1745979040806,-400.0,0.00039952,5]
[359391984,1745979040816,-548.07,0.00039952,5]
[359391985,1745979040826,-400.0,0.00039952,5]
[359391986,1745979040835,-377.3314419,0.00039952,5]
[359391987,1745979040845,-522.94757701,0.00039952,5]
[359391988,1745979040855,-400.0,0.00039952,5]
[359391989,1745979040865,-400.0,0.00039952,5]
[359391990,1745979040874,-478.67039151,0.00039952,5]
[359391991,1745979041355,-400.0,0.0003994,5]
[359391992,1745979041365,-24.51254315,0.00039952,5]
[359391993,1745979041375,-400.0,0.00039952,5]
[359391994,1745979041385,-400.0,0.00039952,5]
[359391995,1745979041395,-501.3046188,0.00039952,5]
[359391996,1745979041405,-400.0,0.00039952,5]
[359391997,1745979041415,-507.25014021,0.00039952,5]
[359391998,1745979041425,-400.0,0.00039952,5]
[359391999,1745979041434,-400.0,0.00039952,5]
[359392000,1745979041444,-505.00241426,0.00039952,5]
[359392001,1745979041454,-502.52895253,0.00039952,5]
[359392002,1745979041464,-500.0,0.00039952,5]
[359392003,1745979041474,-500.0,0.00039952,5]
[359392004,1745979041483,-400.0,0.00039952,5]
[359392005,1745979041493,-502.26407799,0.00039952,5]
[359392006,1745979041502,-400.0,0.00039952,5]
[359392007,1745979041512,-408.29298112,0.00039952,5]
[359392008,1745979041521,-400.0,0.00039952,5]
[359392009,1745979041531,-400.0,0.00039952,5]
[359392010,1745979041541,-503.19067355,0.00039952,5]
[359392011,1745979041550,-503.03740255,0.00039952,5]
[359392012,1745979041560,-400.0,0.00039952,5]
[359392013,1745979041570,-508.32525501,0.00039952,5]
[359392014,1745979041579,-255.76169598,0.00039952,5]
[359392015,1745979041589,-1235.07,0.00039952,5]
[359392016,1745979041598,-400.0,0.00039952,5]
[359392017,1745979041608,-400.0,0.00039952,5]
[359392018,1745979041617,-400.0,0.00039952,5]
[359392019,1745979041627,-400.0,0.00039952,5]
[359392020,1745979041637,-1027.37,0.00039952,5]
[359392021,1745979041647,-400.0,0.00039952,5]
[359392022,1745979041656,-400.0,0.00039952,5]
[359392023,1745979041666,-313.88385862,0.00039952,5]
[359392024,1745979041675,-502.6919609,0.00039952,5]
[359392025,1745979041685,-400.0,0.00039952,5]
[359392026,1745979041695,-1632.35,0.00039952,5]
[359392027,1745979041706,-400.0,0.00039952,5]
[359392028,1745979041715,-352.21385563,0.00039952,5]
[359392029,1745979041727,-581.16,0.00039952,5]
[359392030,1745979041739,-400.87967335,0.00039952,5]
[359392031,1745979041748,-1082.01,0.00039952,5]
[359392032,1745979041760,-153.1472673,0.00039952,5]
[359392033,1745979041771,-400.0,0.00039952,5]
[359392034,1745979041781,-296.88359585,0.00039952,5]
[359392035,1745979041791,-400.0,0.00039952,5]
[359392036,1745979041800,-400.0,0.00039952,5]
[359392037,1745979041812,-2222.61,0.00039952,5]
[359392038,1745979041822,-1217.94,0.00039952,5]
[359392039,1745979041834,-202.15098392,0.00039952,5]
[359392040,1745979041844,-400.0,0.00039952,5]
[359392041,1745979041853,-202.75899635,0.00039952,5]
[359392042,1745979041862,-947.99,0.00039952,5]
[359392043,1745979041871,-504.81935654,0.00039952,5]
[359392044,1745979041881,-400.0,0.00039952,5]
[359392045,1745979041891,-400.0,0.00039952,5]
[359392046,1745979041900,-503.57184632,0.00039952,5]
[359392047,1745979041912,-404.41555033,0.00039952,5]
[359392048,1745979041923,-400.0,0.00039952,5]
[359392049,1745979041935,-404.4760016,0.00039952,5]
[359392050,1745979041944,-400.0,0.00039952,5]
[359392051,1745979041954,-400.0,0.00039952,5]
[359392052,1745979041964,-501.93023838,0.00039952,5]
[359392053,1745979041976,-502.86353247,0.00039952,5]
[359392054,1745979041986,-400.72448485,0.00039952,5]
[359392055,1745979041997,-430.1,0.00039952,5]
[359392056,1745979042008,-280.43816847,0.00039952,5]
[359392057,1745979042018,-400.0,0.00039952,5]
[359392058,1745979042028,-501.45803369,0.00039952,5]
[359392059,1745979042037,-886.59,0.00039952,5]
[359392060,1745979042047,-527.94630093,0.00039952,5]
[359392100,1745979043278,-2151.53369907,0.00039952,5]
[359392101,1745979043289,-1103.7,0.00039952,5]
[359392102,1745979043298,-400.0,0.00039952,5]
[359392103,1745979043308,-400.0,0.00039952,5]
[359392104,1745979043323,-402.99518336,0.00039952,5]
[359392105,1745979043333,-400.0,0.00039952,5]
[359392106,1745979043344,-400.0,0.00039952,5]
[359392107,1745979043354,-400.0,0.00039952,5]
[359392108,1745979043364,-404.21802688,0.00039952,5]
[359392109,1745979043374,-400.0,0.00039952,5]
[359392110,1745979043384,-400.0,0.00039952,5]
[359392111,1745979043395,-400.0,0.00039952,5]
[359392112,1745979043406,-502.80202292,0.00039952,5]
[359392113,1745979043417,-501.27879383,0.00039952,5]
[359392114,1745979043426,-400.0,0.00039952,5]
[359392115,1745979043436,-400.0,0.00039952,5]
[359392116,1745979043447,-2523.69,0.00039952,5]
[359392117,1745979043456,-2880.62,0.00039952,5]
[359392119,1745979043466,-400.0,0.00039952,5]
[359392121,1745979043475,-400.0,0.00039952,5]
[359392122,1745979043484,-400.0,0.00039952,5]
[359392123,1745979043494,-500.0,0.00039952,5]
[359392124,1745979043503,-400.0,0.00039952,5]
[359392125,1745979043514,-403.47592809,0.00039952,5]
[359392126,1745979043524,-400.0,0.00039952,5]
[359392127,1745979043534,-308.13225659,0.00039952,5]
[359392128,1745979043544,-400.0,0.00039952,5]
[359392129,1745979043556,-400.0,0.00039952,5]
[359392130,1745979043566,-1795.19,0.00039952,5]
[359392131,1745979043576,-400.0,0.00039952,5]
[359392132,1745979043586,-503.76111857,0.00039952,5]
[359392133,1745979043596,-400.0,0.00039952,5]
[359392134,1745979043606,-400.0,0.00039952,5]
[359392135,1745979043617,-402.95478276,0.00039952,5]
[359392136,1745979043627,-400.0,0.00039952,5]
[359392137,1745979043637,-329.75540737,0.00039952,5]
[359392138,1745979043647,-400.0,0.00039952,5]
[359392139,1745979043804,-400.0,0.00039952,5]
[359392140,1745979043814,-502.60109478,0.00039952,5]
[359392141,1745979043823,-403.07437913,0.00039952,5]
[359392142,1745979043833,-532.59,0.00039952,5]
[359392143,1745979043843,-171.62756595,0.00039952,5]
[359392144,1745979043853,-503.36882374,0.00039952,5]
[359392145,1745979043863,-558.2,0.00039952,5]
[359392146,1745979043872,-503.58904915,0.00039952,5]
[359392147,1745979043882,-502.48742564,0.00039952,5]
[359392148,1745979043891,-1050.34,0.00039952,5]
[359392149,1745979043903,-400.0,0.00039952,5]
[359392150,1745979043912,-501.48990663,0.00039952,5]
[359392151,1745979043922,-501.3629829,0.00039952,5]
[359392152,1745979043935,-400.0,0.00039952,5]
[359392153,1745979043945,-400.0,0.00039952,5]
[359392154,1745979043955,-400.0,0.00039952,5]
[359392155,1745979043964,-501.781675,0.00039952,5]
[359392156,1745979043976,-1103.4,0.00039952,5]
[359392157,1745979043986,-6641.7,0.00039952,5]
[359392158,1745979043995,-400.0,0.00039952,5]
[359392159,1745979044006,-625.9,0.00039952,5]
[359392160,1745979044015,-215.77714607,0.00039952,5]
[359392161,1745979044025,-400.0,0.00039952,5]
[359392162,1745979044035,-400.0,0.00039952,5]
[359392163,1745979044045,-400.0,0.00039952,5]
[359392164,1745979044054,-400.0,0.00039952,5]
[359392165,1745979044064,-400.0,0.00039952,5]
[359392166,1745979044073,-400.0,0.00039952,5]
[359392167,1745979044083,-400.0,0.00039952,5]
[359392168,1745979044093,-4823.81,0.00039952,5]
[359392169,1745979044103,-3308.84,0.00039952,5]
[359392170,1745979044113,-400.79699978,0.00039952,5]
[359392171,1745979044122,-502.44411373,0.00039952,5]
[359392172,1745979044132,-400.0,0.00039952,5]
[359392173,1745979044141,-400.0,0.00039952,5]
[359392174,1745979044151,-400.0,0.00039952,5]
[359392175,1745979044160,-2342.4,0.00039952,5]
[359392176,1745979044170,-41896.45431708,0.00039953,2]
[359392177,1745979044181,-151.0,0.00039953,14]
[359392178,1745979044191,-151.0,0.00039953,14]
[359392179,1745979044201,-26984.8925234,0.00039963,3]
[359392180,1745979044210,-500.0,0.00039973,5]
[359392181,1745979044220,-503.11651459,0.00039973,5]
[359392182,1745979044230,-500.0,0.00039973,5]
[359392183,1745979044239,-501.12682132,0.00039973,5]
[359392184,1745979044249,-421.93968755,0.00039973,5]
[359392185,1745979044258,-506.6069794,0.00039973,5]
[359392186,1745979044270,-300.0,0.00039973,5]
[359392187,1745979044279,-500.0,0.00039973,5]
[359392188,1745979044289,-500.0,0.00039973,5]
[359392189,1745979044299,-621.23388982,0.00039973,5]
[359392190,1745979044308,-177.70317533,0.00039973,5]
[359392191,1745979044317,-500.0,0.00039973,5]
[359392192,1745979044327,-504.85632414,0.00039973,2]
[359392193,1745979044338,-502.75942627,0.00039973,5]
[359392194,1745979044348,-505.18457774,0.00039973,5]
[359392195,1745979044358,-500.5028391,0.00039973,5]
[359392196,1745979044368,-500.0,0.00039973,5]
[359392197,1745979044378,-1506.85,0.00040177,5]
[359392198,1745979044387,-500.0,0.00040177,5]
[359392199,1745979044397,-128735.84122203,0.00040204,12]
[359392200,1745979044407,-34894.14934503,0.00040205,4]
[359392218,1745979046254,-310.143,0.00037318,2]
[359392219,1745979046264,-161.6147397,0.0003994,5]
[359392225,1745979487227,-255.17430411,0.00025999,7]
[359392226,1745979492254,-320.0,0.00025999,7]
[359392227,1745979496398,-157.22873197,0.00025999,7]
[359392228,1745979502444,-500.0,0.00025999,7]
[359392229,1745979505125,-406.27667642,0.00025999,7]
[359392230,1745979510218,-219.67482238,0.00025999,7]
[359392231,1745979517752,-280.32517762,0.00025998,2]
[359392232,1745979520387,-151.0,0.00025998,2]
[359392233,1745979525299,-68.67482238,0.00025998,2]
[359392234,1745979525334,-258.27800854,0.00025998,2]
[359392235,1745979534180,-175.16702011,0.00025998,2]
[359392236,1745979537410,-66.55497135,0.00025998,2]
[359392237,1745979537433,-123.47555819,0.00025998,2]
[359392238,1745979542930,-102.80111823,0.00025998,2]
[359392239,1745979542962,-57.19888177,0.00025998,2]
[359392240,1745979548424,-168.2308609,0.00025998,2]
[359392241,1745979556100,-274.57025733,0.00025998,2]
[359392242,1745979556134,-62.92052541,0.00025998,2]
[359392243,1745979559940,-400.50921726,0.00025998,2]
[359392244,1745979562665,-36.57025733,0.00025998,2]
[359392245,1745979562694,-263.42974267,0.00025998,2]
[359392246,1745979565833,-236.57025733,0.00025998,2]
[359392247,1745979565860,-63.42974267,0.00025998,2]
[359392248,1745979613763,-300.0,0.00025998,2]
[359392249,1745979622868,-300.0,0.00025997,2]
[359392250,1745979622899,-136.57025733,0.00025998,2]
[359392251,1745979622933,-63.42974267,0.00025998,2]
[359392252,1745979631455,-436.57025733,0.00025998,2]
[359392253,1745979631488,-36.39234567,0.00025998,2]
[359392254,1745979634916,-341.51533644,0.00025998,2]
[359392255,1745979637847,-153.28026028,0.00025998,2]
[359392256,1745979637875,-96.71973972,0.00025998,2]
[359392257,1745979643519,-60.50899225,0.00025998,2]
[359392258,1745979643551,-168.31226255,0.00025998,2]
[359392259,1745979646855,-244.09880099,0.00025998,2]
[359392260,1745979651307,-439.59090651,0.00025999,7]
[359392261,1745979657469,-243.58451732,0.00025998,2]
[359392262,1745979664765,-175.1107754,0.00025998,2]
[359392263,1745979670223,-81.30470728,0.00025998,2]
[359392264,1745979670256,-106.85908573,0.00025998,2]
[359392265,1745979676632,-379.92621908,0.00025998,2]
[359392266,1745979679223,-13.21469519,0.00025998,2]
[359392267,1745979679257,-238.28839356,0.00025998,2]
[359392268,1745979685411,-236.64766515,0.00025998,2]
[359392269,1745979688709,-165.84812085,0.00025998,2]
[359392270,1745979688731,-276.14444478,0.00025999,7]
[359392271,1745979693054,-158.00743437,0.00025999,7]
[359392272,1745979700233,-503.89405925,0.00025999,7]